fUSD/lending_fUSD_20240704
["ID","MTS","AMOUNT","RATE_DAILY","PERIOD"]
[331152525,1720108256803,-181.765078,0.000199,2]
[331152526,1720108256813,-164.203273,0.000199,2]
[331152527,1720108256822,-151.0,0.000199,2]
[331152528,1720108256830,-155.0,0.00019964,2]
[331152529,1720108256840,-544.69316985,0.00019997,2]
[331152530,1720108256849,-11015.635866,0.0002,10]
[331152531,1720108256860,-397.14384617,0.0002,2]
[331152532,1720108256869,-500.0,0.0002,2]
[331152533,1720108256878,-155.49717258,0.0002,2]
[331152534,1720108256887,-158.55001852,0.0002,2]
[331152535,1720108256896,-867.54923149,0.0002,2]
[331152536,1720108256906,-1275.60065017,0.0002,2]
[331152538,1720108256915,-155.3092856,0.0002,2]
[331152540,1720108256924,-155.0,0.0002,2]
[331152542,1720108256933,-550.47298576,0.0002,2]
[331152544,1720108256943,-1000.0,0.0002,2]
[331152545,1720108256952,-218.66710062,0.0002,2]
[331152547,1720108256962,-218.66710062,0.0002,2]
[331152549,1720108256971,-218.66710062,0.0002,2]
[331152551,1720108256980,-218.66710062,0.0002,2]
[331152553,1720108256989,-218.66710062,0.0002,2]
[331152554,1720108256999,-218.66710062,0.0002,2]
[331152555,1720108257008,-218.66710062,0.0002,2]
[331152556,1720108257018,-218.66710062,0.0002,2]
[331152557,1720108257027,-218.66710062,0.0002,2]
[331152558,1720108257038,-218.66710062,0.0002,2]
[331152559,1720108257048,-218.66710062,0.0002,2]
[331152560,1720108257057,-218.66710062,0.0002,2]
[331152561,1720108257067,-218.66710062,0.0002,2]
[331152562,1720108257076,-218.66710062,0.0002,2]
[331152563,1720108257086,-218.66710062,0.0002,2]
[331152564,1720108257095,-218.66710062,0.0002,2]
[331152565,1720108257105,-218.66710062,0.0002,2]
[331152566,1720108257116,-218.66710062,0.0002,2]
[331152567,1720108257128,-218.66710062,0.0002,2]
[331152568,1720108257137,-218.66710062,0.0002,2]
[331152569,1720108257147,-218.66710062,0.0002,2]
[331152570,1720108257156,-218.66710062,0.0002,2]
[331152571,1720108257166,-218.66710062,0.0002,2]
[331152572,1720108257175,-218.66710062,0.0002,2]
[331152573,1720108257187,-218.66710062,0.0002,2]
[331152574,1720108257197,-218.66710062,0.0002,2]
[331152575,1720108257206,-218.66710062,0.0002,2]
[331152576,1720108257215,-218.66710062,0.0002,2]
[331152577,1720108257225,-218.66710062,0.0002,2]
[331152578,1720108257234,-218.66710062,0.0002,2]
[331152579,1720108257243,-218.66710062,0.0002,2]
[331152580,1720108257253,-218.66710062,0.0002,2]
[331152581,1720108257263,-218.66710062,0.0002,2]
[331152582,1720108257273,-3172.32459788,0.0002,2]
[331152583,1720108257284,-218.66710062,0.0002,2]
[331152584,1720108257294,-218.66710062,0.0002,2]
[331152585,1720108257304,-218.66710062,0.0002,2]
[331152586,1720108257314,-218.66710062,0.0002,2]
[331152587,1720108257325,-218.66710062,0.0002,2]
[331152588,1720108257335,-218.66710062,0.0002,2]
[331152589,1720108257346,-218.66710062,0.0002,2]
[331152590,1720108257359,-218.66710062,0.0002,2]
[331152591,1720108257370,-218.66710062,0.0002,2]
[331152592,1720108257380,-218.66710062,0.0002,2]
[331152593,1720108257391,-218.66710062,0.0002,2]
[331152594,1720108257400,-218.66710062,0.0002,2]
[331152595,1720108257410,-218.66710062,0.0002,2]
[331152596,1720108257419,-218.66710062,0.0002,2]
[331152597,1720108257428,-218.66710062,0.0002,2]
[331152598,1720108257437,-218.66710062,0.0002,2]
[331152599,1720108257448,-218.66710062,0.0002,2]
[331152600,1720108257457,-218.66710062,0.0002,2]
[331152601,1720108257467,-218.66710062,0.0002,2]
[331152602,1720108257477,-218.66710062,0.0002,2]
[331152603,1720108257486,-218.66710062,0.0002,2]
[331152604,1720108257496,-218.66710062,0.0002,2]
[331152605,1720108257506,-218.66710062,0.0002,2]
[331152606,1720108257516,-218.66710062,0.0002,2]
[331152607,1720108257525,-218.66710062,0.0002,2]
[331152608,1720108257535,-15411.86353633,0.00020082,2]
[331152609,1720108257545,-1152.0,0.00020167,2]
[331152610,1720108257555,-2018.58415497,0.000202,2]
[331152611,1720108257564,-150.0,0.00020213,2]
[331152612,1720108257574,-151.0,0.00020231,2]
[331152613,1720108257584,-1194.64323356,0.00020271,2]
[331152614,1720108257594,-570.83528657,0.000203,5]
[331152615,1720108257606,-356.0,0.000203,2]
[331152616,1720108257619,-1000.0,0.000203,2]
[331152617,1720108257628,-791.0,0.000203,2]
[331152618,1720108257638,-511.0,0.000203,2]
[331152619,1720108257648,-15411.86353633,0.00020363,2]
[331152620,1720108257665,-1708.14,0.00020371,2]
[331152621,1720108257675,-528.5,0.00020423,2]
[331152622,1720108257685,-2719.0,0.000205,3]
[331152623,1720108257694,-551.50915167,0.000205,2]
[331152624,1720108257705,-7106.98566193,0.000205,2]
[331152625,1720108257714,-190.0,0.000205,2]
[331152626,1720108257724,-6004.467751,0.000205,2]
[331152627,1720108257734,-3955.0,0.000205,2]
[331152628,1720108257743,-412.0,0.000205,2]
[331152629,1720108257756,-3648.75943703,0.00020507,2]
[331152630,1720108257766,-171.997248,0.00020542,2]
[331152631,1720108257777,-200.190465,0.00020542,2]
[331152632,1720108257787,-166.111953,0.00020548,2]
[331152633,1720108257797,-171.94,0.00020548,2]
[331152634,1720108257807,-151.0,0.00020575,2]
[331152635,1720108257818,-254.66725659,0.00020637,2]
[331152636,1720108257827,-155.0,0.00020637,2]
[331152637,1720108257837,-15411.86353633,0.00020643,2]
[331152638,1720108257847,-185.91,0.00020787,2]
[331152639,1720108257858,-171.997248,0.00020798,2]
[331152640,1720108257868,-200.190465,0.00020798,2]
[331152641,1720108257878,-175.48904366,0.000209,2]
[331152642,1720108257888,-178.56513743,0.000209,2]
[331152643,1720108257898,-151.0,0.0002092,2]
[331152644,1720108257907,-15411.86353633,0.00020924,2]
[331152645,1720108257916,-500.0,0.00020934,2]
[331152646,1720108257926,-4711.28601703,0.00020997,3]
[331152647,1720108257935,-228943.99491298,0.00021,3]
[331152648,1720108257945,-23788.00074728,0.00021,3]
[331152649,1720108257954,-50000.0,0.00021,5]
[331152650,1720108257964,-50257.65,0.00021,5]
[331152651,1720108257974,-500.0,0.00021,2]
[331152652,1720108257983,-151.0,0.00021,2]
[331152653,1720108257993,-151.0,0.00021,2]
[331152654,1720108258002,-151.0,0.00021,2]
[331152655,1720108258011,-151.0,0.00021,2]
[331152656,1720108258021,-151.0,0.00021,2]
[331152657,1720108258030,-167.72788,0.00021,2]
[331152658,1720108258039,-151.0,0.00021,2]
[331152659,1720108258049,-151.0,0.00021,2]
[331152660,1720108258058,-191.193445,0.00021,2]
[331152661,1720108258068,-152.458043,0.00021,2]
[331152662,1720108258077,-20000.00343081,0.00021,4]
[331152663,1720108258088,-20000.00886356,0.00021,4]
[331152664,1720108258097,-151.0,0.00021,2]
[331152665,1720108258110,-151.0,0.00021,2]
[331152666,1720108258120,-255.674595,0.00021,2]
[331152667,1720108258130,-151.0,0.00021,2]
[331152668,1720108258140,-19993.69796551,0.00021,4]
[331152669,1720108258149,-255.674595,0.00021,2]
[331152670,1720108258159,-151.0,0.00021,2]
[331152671,1720108258168,-151.0,0.00021,2]
[331152672,1720108258178,-151.0,0.00021,2]
[331152673,1720108258188,-151.0,0.00021,2]
[331152674,1720108258198,-151.0,0.00021,2]
[331152675,1720108258207,-151.449107,0.00021,2]
[331152676,1720108258216,-151.751471,0.00021,2]
[331152677,1720108258226,-151.0,0.00021,2]
[331152678,1720108258236,-151.0,0.00021,2]
[331152679,1720108258246,-151.0,0.00021,2]
[331152680,1720108258255,-151.0,0.00021,2]
[331152681,1720108258264,-151.0,0.00021,2]
[331152682,1720108258275,-151.0,0.00021,2]
[331152683,1720108258284,-151.0,0.00021,2]
[331152684,1720108258294,-151.0,0.00021,2]
[331152685,1720108258303,-211.810807,0.00021,2]
[331152686,1720108258314,-174.980375,0.00021,2]
[331152687,1720108258324,-151.0,0.00021,2]
[331152688,1720108258333,-151.0,0.00021,2]
[331152689,1720108258342,-151.0,0.00021,2]
[331152690,1720108258352,-247.245186,0.00021,2]
[331152691,1720108258364,-151.0,0.00021,2]
[331152692,1720108258374,-151.0,0.00021,2]
[331152693,1720108258384,-151.0,0.00021,2]
[331152694,1720108258394,-151.0,0.00021,2]
[331152695,1720108258403,-151.0,0.00021,2]
[331152696,1720108258413,-298.460568,0.00021,2]
[331152697,1720108258424,-151.0,0.00021,2]
[331152698,1720108258433,-1300.0,0.00021,2]
[331152699,1720108258443,-151.0,0.00021,2]
[331152700,1720108258452,-19999.999999,0.00021,4]
[331152701,1720108258462,-199.62294,0.00021,2]
[331152702,1720108258471,-151.0,0.00021,2]
[331152703,1720108258481,-151.0,0.00021,2]
[331152704,1720108258490,-231.46473,0.00021,2]
[331152705,1720108258500,-151.0,0.00021,2]
[331152706,1720108258509,-151.0,0.00021,2]
[331152707,1720108258519,-194.290574,0.00021,2]
[331152708,1720108258528,-203.313417,0.00021,2]
[331152709,1720108258538,-251.967184,0.00021,2]
[331152710,1720108258547,-251.967184,0.00021,2]
[331152711,1720108258557,-151.0,0.00021,2]
[331152712,1720108258567,-260.373787,0.00021,2]
[331152713,1720108258576,-260.373787,0.00021,2]
[331152714,1720108258585,-151.0,0.00021,2]
[331152715,1720108258595,-151.0,0.00021,2]
[331152716,1720108258604,-151.0,0.00021,2]
[331152717,1720108258616,-151.0,0.00021,2]
[331152718,1720108258625,-151.0,0.00021,2]
[331152719,1720108258636,-151.0,0.00021,2]
[331152720,1720108258645,-168.653569,0.00021,2]
[331152721,1720108258655,-151.0,0.00021,2]
[331152722,1720108258669,-151.0,0.00021,2]
[331152723,1720108258679,-168.568054,0.00021,2]
[331152724,1720108258688,-168.568054,0.00021,2]
[331152725,1720108258698,-151.0,0.00021,2]
[331152726,1720108258707,-151.0,0.00021,2]
[331152727,1720108258717,-151.0,0.00021,2]
[331152728,1720108258726,-163.115482,0.00021,2]
[331152729,1720108258735,-163.115482,0.00021,2]
[331152730,1720108258747,-2559.57149,0.00021,2]
[331152731,1720108258758,-2559.57149,0.00021,2]
[331152732,1720108258767,-151.0,0.00021,2]
[331152733,1720108258776,-151.0,0.00021,2]
[331152734,1720108258786,-164.203273,0.00021,2]
[331152735,1720108258795,-181.765078,0.00021,2]
[331152736,1720108258805,-181.765078,0.00021,2]
[331152737,1720108258814,-164.203273,0.00021,2]
[331152738,1720108258824,-151.0,0.00021,2]
[331152739,1720108258834,-171.997248,0.00021055,2]
[331152740,1720108258843,-200.190465,0.00021055,2]
[331152741,1720108258853,-500.0,0.00021071,2]
[331152742,1720108258863,-150.0,0.00021159,2]
[331152743,1720108258873,-528.5,0.00021159,2]
[331152744,1720108258882,-164.87,0.00021159,2]
[331152745,1720108258892,-150.0,0.00021159,2]
[331152746,1720108258902,-150.0,0.00021159,2]
[331152747,1720108258912,-709.4,0.00021159,2]
[331152748,1720108258921,-150.0,0.00021159,2]
[331152749,1720108258932,-318.6,0.00021159,2]
[331152750,1720108258943,-154.49,0.00021159,2]
[331152751,1720108258953,-306.35,0.00021159,2]
[331152752,1720108258962,-528.5,0.00021159,2]
[331152753,1720108258972,-150.0,0.00021159,2]
[331152754,1720108258984,-301.42,0.00021159,2]
[331152755,1720108258995,-164.87,0.00021159,2]
[331152756,1720108259006,-150.0,0.00021159,2]
[331152757,1720108259019,-150.0,0.00021159,2]
[331152758,1720108259029,-150.0,0.00021159,2]
[331152759,1720108259038,-528.5,0.00021159,2]
[331152760,1720108259048,-150.0,0.00021159,2]
[331152761,1720108259057,-164.87,0.00021159,2]
[331152762,1720108259067,-150.0,0.00021159,2]
[331152763,1720108259076,-150.0,0.00021159,2]
[331152764,1720108259233,-150.0,0.00021159,2]
[331152765,1720108259242,-1052.0,0.00021159,2]
[331152766,1720108259252,-150.0,0.00021159,2]
[331152767,1720108259261,-15411.86353633,0.00021205,2]
[331152768,1720108259271,-1054.57,0.00021245,2]
[331152769,1720108259280,-521.8,0.00021245,2]
[331152770,1720108259289,-151.0,0.00021265,2]
[331152771,1720108259298,-171.997248,0.00021312,2]
[331152772,1720108259307,-200.190465,0.00021312,2]
[331152773,1720108259316,-500.0,0.00021345,2]
[331152774,1720108259326,-12762.29138076,0.00021369,3]
[331152775,1720108259336,-166.111953,0.0002137,2]
[331152776,1720108259345,-180.0,0.00021397,2]
[331152777,1720108259355,-1200.0,0.000214,2]
[331152778,1720108259368,-3648.75943703,0.00021454,2]
[331152779,1720108259378,-15411.86353633,0.00021486,2]
[331152780,1720108259388,-1000.0,0.000215,2]
[331152781,1720108259398,-731.48484841,0.00021507,2]
[331152782,1720108259407,-171.997248,0.00021569,2]
[331152783,1720108259416,-200.190465,0.00021569,2]
[331152784,1720108259426,-731.48484841,0.00021589,2]
[331152785,1720108259435,-151.0,0.0002161,2]
[331152786,1720108259444,-168.82,0.00021644,2]
[331152787,1720108259453,-313.43,0.00021644,2]
[331152788,1720108259463,-158.24,0.00021644,2]
[331152789,1720108259472,-323.25,0.00021644,2]
[331152790,1720108259481,-151.68,0.00021644,2]
[331152791,1720108259491,-198.0,0.0002168,3]
[331152792,1720108259500,-731.48484841,0.00021699,2]
[331152793,1720108259510,-288.5,0.000217,2]
[331152794,1720108259519,-3420.42,0.000217,2]
[331152795,1720108259528,-1000.0,0.000217,2]
[331152796,1720108259538,-15411.86353633,0.00021767,2]
[331152797,1720108259548,-731.48484841,0.00021781,2]
[331152798,1720108259557,-400.0,0.000218,7]
[331152799,1720108259566,-1000.0,0.000218,2]
[331152800,1720108259576,-731.48484841,0.00021863,2]
[331152801,1720108259585,-400.0,0.000219,7]
[331152802,1720108259595,-304.34,0.000219,2]
[331152803,1720108259604,-2000.0,0.000219,2]
[331152804,1720108259619,-2000.0,0.0002191,2]
[331152805,1720108259628,-150.0,0.00021917,2]
[331152806,1720108259637,-300.0,0.00021917,2]
[331152807,1720108259647,-450.0,0.00021917,2]
[331152808,1720108259657,-600.0,0.00021917,2]
[331152809,1720108259668,-750.0,0.00021917,2]
[331152810,1720108259684,-255.38040495,0.00021917,2]
[331152811,1720108259693,-1080.65,0.00021918,2]
[331152812,1720108259702,-226.96,0.00021918,2]
[331152813,1720108259711,-151.0,0.00021918,2]
[331152814,1720108259721,-162.04,0.00021918,2]
[331152815,1720108259730,-155.557724,0.00021918,2]
[331152816,1720108259739,-155.557724,0.00021918,2]
[331152817,1720108259751,-150.0,0.00021918,2]
[331152818,1720108259760,-1736.959556,0.00021918,2]
[331152819,1720108259769,-1736.959556,0.00021918,2]
[331152820,1720108259778,-1736.959556,0.00021918,2]
[331152821,1720108259788,-1736.959556,0.00021918,2]
[331152822,1720108259797,-150.0,0.00021918,2]
[331152823,1720108259806,-2000.0,0.0002192,2]
[331152824,1720108259815,-2000.0,0.0002193,2]
[331152825,1720108259825,-2049.93094,0.0002194,2]
[331152826,1720108259836,-151.0,0.00021955,2]
[331152827,1720108259847,-731.48484841,0.00021973,5]
[331152828,1720108259856,-793.14485048,0.00022,2]
[331152829,1720108259867,-500.0,0.00022,2]
[331152830,1720108259877,-159.64043736,0.00022,2]
[331152831,1720108259886,-995.2,0.00022,2]
[331152832,1720108259896,-1000.0,0.00022,2]
[331152833,1720108259906,-154.35155583,0.0002201,2]
[331152834,1720108259918,-153.32675918,0.00022016,2]
[331152835,1720108259927,-153.32675918,0.00022019,2]
[331152836,1720108259938,-674.03,0.00022022,2]
[331152837,1720108259948,-440.18913363,0.00022046,2]
[331152838,1720108259958,-15411.86353633,0.00022048,2]
[331152839,1720108259968,-151.0,0.00022048,7]
[331152840,1720108259977,-151.0,0.00022048,7]
[331152841,1720108259987,-191.248132,0.00022048,7]
[331152842,1720108259998,-247.245186,0.00022048,7]
[331152843,1720108260008,-151.0,0.00022048,7]
[331152844,1720108260018,-151.0,0.00022048,7]
[331152845,1720108260028,-163.115482,0.00022048,7]
[331152846,1720108260037,-163.115482,0.00022048,7]
[331152847,1720108260048,-2559.57149,0.00022048,7]
[331152848,1720108260058,-273.627046,0.00022048,7]
[331152849,1720108260067,-2559.57149,0.00022048,7]
[331152850,1720108260076,-151.0,0.00022048,7]
[331152851,1720108260086,-164.203273,0.00022048,7]
[331152852,1720108260095,-181.765078,0.00022048,7]
[331152853,1720108260104,-181.765078,0.00022048,7]
[331152854,1720108260116,-164.203273,0.00022048,7]
[331152855,1720108260126,-1736.959556,0.00022048,7]
[331152856,1720108260135,-1736.959556,0.00022048,7]
[331152857,1720108260146,-151.0,0.00022048,7]
[331152858,1720108260156,-731.48484841,0.00022055,5]
[331152859,1720108260165,-151.0684423,0.00022081,2]
[331152860,1720108260174,-246.20806307,0.0002209,2]
[331152861,1720108260183,-640.0,0.00022094,2]
[331152862,1720108260193,-166.66666666,0.00022117,2]
[331152863,1720108260203,-154.35155583,0.00022123,2]
[331152864,1720108260212,-198.136889,0.00022128,2]
[331152865,1720108260222,-440.18913363,0.00022129,2]
[331152866,1720108260234,-731.48484841,0.00022137,5]
[331152867,1720108260243,-153.32675918,0.0002217,2]
[331152868,1720108260253,-151.80666495,0.00022176,2]
[331152869,1720108260262,-153.32675918,0.00022187,2]
[331152870,1720108260271,-198.136889,0.00022189,2]
[331152871,1720108260280,-365.92093007,0.00022191,2]
[331152872,1720108260290,-166.31243059,0.00022191,2]
[331152873,1720108260299,-151.0,0.00022198,7]
[331152874,1720108260308,-151.0,0.00022198,7]
[331152875,1720108260318,-151.0,0.00022198,7]
[331152876,1720108260327,-170.878313,0.00022198,7]
[331152877,1720108260337,-151.0,0.00022198,7]
[331152878,1720108260347,-154.3370165,0.00022198,2]
[331152879,1720108260356,-1875.0,0.000222,2]
[331152880,1720108260368,-154.35155583,0.00022202,2]
[331152881,1720108260377,-198.136889,0.00022207,2]
[331152882,1720108260387,-157.4892561,0.00022224,2]
[331152883,1720108260397,-731.48484841,0.00022247,5]
[331152884,1720108260407,-189.6399676,0.0002225,2]
[331152885,1720108260417,-157.4892561,0.00022285,2]
[331152886,1720108260426,-440.18913363,0.00022292,2]
[331152887,1720108260436,-151.0,0.00022299,2]
[331152888,1720108260445,-198.136889,0.00022299,2]
[331152889,1720108260455,-762.34522403,0.000223,2]
[331152890,1720108260464,-155.67457732,0.00022302,2]
[331152891,1720108260474,-1830.0,0.00022321,2]
[331152892,1720108260484,-1273.0,0.00022321,2]
[331152893,1720108260494,-360.0,0.00022321,2]
[331152894,1720108260504,-1046.0,0.00022321,2]
[331152895,1720108260513,-166.0,0.00022321,2]
[331152896,1720108260533,-618.0,0.00022321,2]
[331152897,1720108260544,-813.0,0.00022321,2]
[331152898,1720108260554,-443.0,0.00022321,2]
[331152899,1720108260564,-449.0,0.00022321,2]
[331152900,1720108260574,-150.0,0.00022321,2]
[331152901,1720108260585,-1304.0,0.00022321,2]
[331152902,1720108260595,-2375.0,0.00022321,2]
[331152903,1720108260605,-548.0,0.00022321,2]
[331152904,1720108260621,-3185.0,0.00022321,2]
[331152905,1720108260631,-1984.0,0.00022321,2]
[331152906,1720108260642,-5176.0,0.00022321,2]
[331152907,1720108260652,-1197.0,0.00022321,2]
[331152908,1720108260667,-291.0,0.00022321,2]
[331152909,1720108260682,-5804.0,0.00022321,2]
[331152910,1720108260692,-1662.0,0.00022321,2]
[331152911,1720108260701,-37485.095,0.00022321,2]
[331152912,1720108260712,-1070.0,0.00022321,2]
[331152913,1720108260721,-203.810951,0.00022321,7]
[331152914,1720108260731,-151.0,0.00022321,7]
[331152915,1720108260740,-151.0,0.00022321,7]
[331152916,1720108260753,-151.0,0.00022321,7]
[331152917,1720108260763,-151.0,0.00022321,7]
[331152918,1720108260773,-152.34412,0.00022321,7]
[331152919,1720108260783,-151.0,0.00022321,7]
[331152920,1720108260792,-155.557724,0.00022321,7]
[331152921,1720108260802,-155.557724,0.00022321,7]
[331152922,1720108260813,-151.0,0.00022321,7]
[331152923,1720108260823,-151.0,0.00022321,7]
[331152924,1720108260833,-151.0,0.00022321,7]
[331152925,1720108260842,-251.967184,0.00022321,7]
[331152926,1720108260852,-251.967184,0.00022321,7]
[331152927,1720108260865,-151.0,0.00022321,7]
[331152928,1720108260874,-260.373787,0.00022321,7]
[331152929,1720108260883,-260.373787,0.00022321,7]
[331152930,1720108260892,-151.0,0.00022321,7]
[331152931,1720108260901,-151.0,0.00022321,7]
[331152932,1720108260910,-286.10235,0.00022321,7]
[331152933,1720108260919,-151.0,0.00022321,7]
[331152934,1720108260930,-168.568054,0.00022321,7]
[331152935,1720108260939,-168.568054,0.00022321,7]
[331152936,1720108260948,-151.0,0.00022321,7]
[331152937,1720108260958,-151.0,0.00022321,7]
[331152938,1720108260968,-246.20806307,0.00022326,2]
[331152939,1720108260977,-151.0,0.00022328,7]
[331152940,1720108260988,-151.0,0.00022328,7]
[331152941,1720108260998,-151.0,0.00022328,7]
[331152942,1720108261007,-255.674595,0.00022328,7]
[331152943,1720108261017,-255.674595,0.00022328,7]
[331152944,1720108261028,-151.0,0.00022328,7]
[331152945,1720108261038,-151.0,0.00022328,7]
[331152946,1720108261048,-151.0,0.00022328,7]
[331152947,1720108261058,-151.0,0.00022328,7]
[331152948,1720108261072,-151.0,0.00022328,7]
[331152949,1720108261082,-153.566451,0.00022328,7]
[331152950,1720108261091,-15411.86353633,0.00022328,2]
[331152951,1720108261102,-731.48484841,0.00022329,5]
[331152952,1720108261114,-154.4649174,0.00022334,2]
[331152953,1720108261123,-151.0684423,0.00022351,2]
[331152954,1720108261134,-1000.0,0.000224,2]
[331152955,1720108261144,-1000.0,0.000224,2]
[331152956,1720108261153,-1000.0,0.000224,2]
[331152957,1720108261163,-1000.0,0.000224,2]
[331152958,1720108261173,-1000.0,0.000224,2]
[331152959,1720108261183,-1000.0,0.000224,2]
[331152960,1720108261193,-1000.0,0.000224,2]
[331152961,1720108261203,-1000.0,0.000224,2]
[331152962,1720108261212,-1000.0,0.000224,2]
[331152963,1720108261222,-1000.0,0.000224,2]
[331152964,1720108261232,-3648.75943703,0.000224,2]
[331152965,1720108261241,-21221.46139375,0.000224,2]
[331152966,1720108261251,-1074.65583715,0.000224,2]
[331152967,1720108261261,-1457.78531868,0.000224,2]
[331152968,1720108261272,-542.46894464,0.000224,2]
[331152969,1720108261282,-198.136889,0.00022405,2]
[331152970,1720108261291,-731.48484841,0.00022411,5]
[331152971,1720108261301,-159.77547607,0.00022418,2]
[331152972,1720108261311,-762.34522403,0.00022423,2]
[331152973,1720108261321,-151.0,0.00022427,7]
[331152974,1720108261330,-154.3370165,0.0002243,2]
[331152975,1720108261340,-200.0,0.0002244,3]
[331152976,1720108261350,-153.32675918,0.00022442,2]
[331152977,1720108261361,-154.35155583,0.00022448,2]
[331152978,1720108261370,-246.20806307,0.00022449,2]
[331152979,1720108261379,-500.0,0.00022458,2]
[331152980,1720108261388,-200.0,0.00022458,2]
[331152981,1720108261398,-151.0684423,0.00022458,2]
[331152982,1720108261411,-166.65100841,0.00022462,2]
[331152983,1720108261421,-166.65100841,0.00022471,2]
[331152984,1720108261431,-27482.0825715,0.00022485,2]
[331152985,1720108261440,-2444.2115949,0.00022485,2]
[331152986,1720108261450,-731.48484841,0.00022493,5]
[331152987,1720108261460,-150.0,0.00022495,2]
[331152988,1720108261469,-150.0,0.00022499,10]
[331152989,1720108261479,-2000.0,0.00022499,2]
[331152990,1720108261491,-2900.0,0.000225,15]
[331152991,1720108261502,-3722970.07193842,0.000225,5]
[331152992,1720108261786,-852732.68897318,0.000225,5]
[331152993,1720108262551,-4972.13300612,0.00014384,2]
[331152994,1720108262561,-209.69,0.00014758,2]
[331152995,1720108262571,-412.61839352,0.00018,2]
[331152996,1720108262580,-254.303,0.00019321,2]
[331152997,1720108262590,-185.423,0.00019321,2]
[331152998,1720108262600,-218.66710062,0.0002,2]
[331152999,1720108262610,-218.66710062,0.0002,2]
[331153000,1720108262622,-218.66710062,0.0002,2]
[331153001,1720108262628,-218.66710062,0.0002,2]
[331153002,1720108262636,-218.66710062,0.0002,2]
[331153003,1720108262645,-218.66710062,0.0002,2]
[331153004,1720108262654,-218.66710062,0.0002,2]
[331153005,1720108262667,-218.66710062,0.0002,2]
[331153006,1720108262676,-218.66710062,0.0002,2]
[331153007,1720108262685,-218.66710062,0.0002,2]
[331153008,1720108262695,-218.66710062,0.0002,2]
[331153009,1720108262706,-218.66710062,0.0002,2]
[331153010,1720108262715,-218.66710062,0.0002,2]
[331153011,1720108262724,-218.66710062,0.0002,2]
[331153012,1720108262734,-218.66710062,0.0002,2]
[331153013,1720108262743,-218.66710062,0.0002,2]
[331153014,1720108262753,-151.0,0.00021,2]
[331153015,1720108262762,-151.0,0.00021,2]
[331153016,1720108262773,-113.34372305,0.00022048,7]
[331153018,1720108262997,-3e-08,0.00022048,7]
[331153019,1720108263012,-37.65627692,0.00022048,7]
[331153020,1720108263022,-8470.22874341,0.000225,5]
[331153021,1720108263033,-2197.79675111,0.000225,5]
[331153022,1720108263045,-1720.68554225,0.000225,5]
[331153023,1720108263057,-310.75725806,0.000225,5]
[331153024,1720108263076,-218.66710062,0.0002,2]
[331153025,1720108263085,-161.150607,0.00021,2]
[331153026,1720108263095,-7028.35696621,0.000225,5]
[331153027,1720108263111,-209.69,0.00016603,2]
[331153028,1720108263121,-13216.375853,0.000225,5]
[331153057,1720109348371,-152.434,0.00012571,2]
[331153058,1720109354148,-158.43957202,0.00013799,2]
[331153059,1720109354173,-13723.77317179,0.000139,2]
[331153060,1720109355556,173.3514,0.00012302,2]
[331153061,1720109355580,47.57332811,0.00012302,2]